fUSD/lending_fUSD_20250526
["ID","MTS","AMOUNT","RATE_DAILY","PERIOD"]
[362419185,1748273440650,-395.42,0.00032366,2]
[362419186,1748273440811,-150.0,0.00032408,2]
[362419187,1748273440836,-150.0,0.00032429,2]
[362419188,1748273440846,-150.0,0.0003244,2]
[362419189,1748273440856,-268.8600502,0.00032486,27]
[362419190,1748273440866,-1000.0,0.000325,2]
[362419191,1748273440878,-150.0,0.0003251,2]
[362419192,1748273440888,-500.0,0.00032526,7]
[362419193,1748273440899,-150.0,0.00032553,2]
[362419194,1748273440909,-150.0,0.00032612,2]
[362419195,1748273440919,-156.587,0.00032626,2]
[362419196,1748273440929,-215.0738,0.00032626,2]
[362419197,1748273440938,-150.0,0.00032639,2]
[362419198,1748273440947,-150.0,0.00032717,2]
[362419199,1748273440956,-186.44,0.00032721,80]
[362419200,1748273440966,-150.0,0.00032749,2]
[362419201,1748273440975,-150.0,0.00032778,2]
[362419202,1748273440984,-150.0,0.00032786,2]
[362419203,1748273440993,-1000.0,0.00032792,2]
[362419204,1748273441003,-150.0,0.0003281,2]
[362419205,1748273441013,-690.35,0.00032841,2]
[362419206,1748273441022,-150.0,0.00032857,2]
[362419207,1748273441031,-150.0,0.00032874,2]
[362419208,1748273441040,-1102.881808,0.00032889,12]
[362419209,1748273441049,-150.0,0.00032899,2]
[362419210,1748273441059,-150.0,0.00032912,2]
[362419211,1748273441068,-150.0,0.00032977,2]
[362419212,1748273441077,-160.0,0.00033,2]
[362419213,1748273441086,-160.0,0.00033,2]
[362419214,1748273441095,-160.0,0.00033,2]
[362419215,1748273441104,-160.0,0.00033,2]
[362419216,1748273441113,-160.0,0.00033,2]
[362419217,1748273441122,-160.0,0.00033,2]
[362419218,1748273441131,-160.0,0.00033,2]
[362419219,1748273441140,-160.0,0.00033,2]
[362419220,1748273441150,-160.0,0.00033,2]
[362419221,1748273441159,-160.0,0.00033,2]
[362419222,1748273441168,-160.0,0.00033,2]
[362419223,1748273441178,-186.6,0.00033,2]
[362419224,1748273441187,-1000.0,0.00033,2]
[362419225,1748273441197,-2299.99999802,0.00033,2]
[362419226,1748273441206,-150.0,0.00033006,2]
[362419227,1748273441216,-770.68,0.00033014,2]
[362419228,1748273441225,-460.2,0.00033041,2]
[362419229,1748273441235,-26989.8782417,0.00033095,2]
[362419230,1748273441244,-12108.96820735,0.00033105,2]
[362419231,1748273441254,-150.0,0.00033135,2]
[362419232,1748273441263,-200.0,0.00033151,2]
[362419233,1748273441273,-273.58899658,0.00033166,2]
[362419234,1748273441282,-150.0,0.00033192,2]
[362419235,1748273441291,-268.8600502,0.0003321,28]
[362419236,1748273441301,-150.0,0.00033226,2]
[362419237,1748273441310,-250.0,0.00033226,30]
[362419238,1748273441319,-1000.0,0.00033229,2]
[362419239,1748273441328,-500.0,0.00033246,2]
[362419240,1748273441339,-200.40224288,0.00033246,2]
[362419241,1748273441348,-201.49098696,0.00033246,2]
[362419242,1748273441357,-500.0,0.00033246,2]
[362419243,1748273441366,-150.0,0.00033246,2]
[362419244,1748273441375,-500.0,0.00033246,2]
[362419245,1748273441385,-200.0,0.00033246,2]
[362419246,1748273441394,-500.0,0.00033273,2]
[362419247,1748273441403,-539.1472452,0.00033273,2]
[362419248,1748273441413,-150.0,0.00033273,2]
[362419249,1748273441422,-500.0,0.00033273,2]
[362419250,1748273441431,-162.84,0.000333,7]
[362419251,1748273441441,-500.0,0.00033301,2]
[362419252,1748273441451,-150.0,0.00033301,2]
[362419253,1748273441460,-500.0,0.00033301,2]
[362419254,1748273441469,-150.0,0.00033308,2]
[362419255,1748273441479,-150.0,0.00033312,2]
[362419256,1748273441488,-422.445,0.00033315,2]
[362419257,1748273441497,-800.0,0.00033315,2]
[362419258,1748273441507,-1463.0,0.00033315,2]
[362419259,1748273441516,-555.0,0.00033315,2]
[362419260,1748273441526,-923.0,0.00033315,2]
[362419261,1748273441535,-1153.0,0.00033315,2]
[362419262,1748273441544,-1312.0,0.00033315,2]
[362419263,1748273441555,-280.828,0.00033315,2]
[362419264,1748273441564,-393.678,0.00033315,2]
[362419265,1748273441574,-642.09294678,0.00033328,2]
[362419266,1748273441583,-279.56115721,0.00033328,2]
[362419267,1748273441592,-500.0,0.00033328,2]
[362419268,1748273441602,-150.0,0.00033331,2]
[362419269,1748273441611,-2258.0,0.00033334,2]
[362419270,1748273441620,-150.0,0.00033347,2]
[362419271,1748273441630,-500.0,0.00033356,2]
[362419272,1748273441640,-500.0,0.00033383,2]
[362419273,1748273441649,-150.0,0.00033398,2]
[362419274,1748273441659,-557.68293893,0.0003341,2]
[362419275,1748273441668,-538.83228188,0.00033439,7]
[362419276,1748273441678,-150.0,0.00033485,2]
[362419277,1748273441687,-26989.8782417,0.0003349,2]
[362419278,1748273441696,-1000.0,0.000335,2]
[362419279,1748273441705,-652.55,0.000335,31]
[362419280,1748273441714,-652.55,0.000335,31]
[362419281,1748273441723,-652.55,0.000335,31]
[362419282,1748273441732,-652.55,0.000335,31]
[362419283,1748273441742,-652.55,0.000335,31]
[362419284,1748273441754,-652.55,0.000335,31]
[362419285,1748273441765,-652.55,0.000335,31]
[362419286,1748273441774,-652.55,0.000335,31]
[362419287,1748273441783,-652.55,0.000335,31]
[362419288,1748273441792,-652.55,0.000335,31]
[362419289,1748273441803,-652.55,0.000335,31]
[362419290,1748273441812,-652.55,0.000335,31]
[362419291,1748273441821,-1173.16364498,0.000335,2]
[362419292,1748273441831,-864.76119748,0.00033502,2]
[362419293,1748273441841,-4000.0,0.0003357,2]
[362419294,1748273441851,-1000.0,0.00033584,2]
[362419295,1748273441860,-164.31146309,0.00033586,15]
[362419296,1748273441870,-160.0,0.000336,5]
[362419297,1748273441879,-766.0,0.000336,2]
[362419298,1748273441888,-700.0,0.000336,12]
[362419299,1748273441897,-237.0,0.000336,2]
[362419300,1748273441907,-375.0,0.000336,2]
[362419301,1748273441916,-150.0,0.00033611,2]
[362419302,1748273441925,-150.0,0.00033626,2]
[362419303,1748273441935,-1075.511,0.00033631,36]
[362419304,1748273441944,-150.0,0.00033669,2]
[362419305,1748273441953,-150.0,0.0003368,2]
[362419306,1748273441963,-1000.0,0.00033686,2]
[362419307,1748273441972,-205.0,0.00033688,7]
[362419308,1748273441981,-150.0,0.00033688,2]
[362419309,1748273441991,-150.0,0.00033689,2]
[362419310,1748273442000,-500.0,0.00033697,7]
[362419311,1748273442009,-707.08,0.00033699,2]
[362419312,1748273442018,-1743.71,0.00033699,2]
[362419313,1748273442027,-1500.0,0.000337,12]
[362419314,1748273442037,-150.0,0.00033708,2]
[362419315,1748273442046,-150.0,0.00033709,2]
[362419316,1748273442055,-150.0,0.00033712,2]
[362419317,1748273442065,-150.0,0.00033715,2]
[362419318,1748273442074,-150.0,0.00033717,2]
[362419319,1748273442085,-150.0,0.0003372,2]
[362419320,1748273442095,-150.0,0.0003372,2]
[362419321,1748273442104,-150.0,0.00033724,2]
[362419322,1748273442113,-1000.0,0.00033726,2]
[362419323,1748273442123,-1000.0,0.00033729,2]
[362419324,1748273442132,-150.0,0.00033729,2]
[362419325,1748273442141,-161.0,0.00033731,5]
[362419326,1748273442151,-150.0,0.00033733,2]
[362419327,1748273442160,-150.0,0.00033735,2]
[362419328,1748273442169,-150.0,0.00033738,2]
[362419329,1748273442179,-150.0,0.00033746,2]
[362419330,1748273442188,-150.0,0.00033748,2]
[362419331,1748273442197,-150.0,0.00033752,2]
[362419332,1748273442207,-150.0,0.00033753,2]
[362419333,1748273442216,-150.0,0.00033754,2]
[362419334,1748273442226,-158.9609818,0.0003376,2]
[362419335,1748273442236,-150.0,0.00033764,2]
[362419336,1748273442245,-5000.0,0.00033771,2]
[362419337,1748273442255,-150.0,0.00033773,2]
[362419338,1748273442264,-492.3324,0.00033779,2]
[362419339,1748273442275,-150.0,0.0003378,2]
[362419340,1748273442284,-150.0,0.00033782,2]
[362419341,1748273442294,-150.0,0.00033783,2]
[362419342,1748273442303,-150.0,0.00033785,2]
[362419343,1748273442313,-150.0,0.00033787,2]
[362419344,1748273442323,-159.42398421,0.00033788,6]
[362419346,1748273442333,-150.0,0.00033788,2]
[362419348,1748273442343,-770.52017373,0.00033789,2]
[362419350,1748273442352,-150.0,0.00033789,2]
[362419351,1748273442362,-500.0,0.00033789,7]
[362419352,1748273442371,-895.81402036,0.00033799,7]
[362419353,1748273442381,-2300.0,0.000338,12]
[362419354,1748273442390,-150.0,0.00033802,2]
[362419355,1748273442399,-151.0,0.00033806,7]
[362419356,1748273442409,-151.0,0.00033806,7]
[362419357,1748273442418,-151.0,0.00033806,7]
[362419358,1748273442428,-151.0,0.00033806,7]
[362419359,1748273442438,-26989.8782417,0.00033806,2]
[362419360,1748273442448,-150.0,0.0003381,2]
[362419361,1748273442457,-150.0,0.00033813,2]
[362419362,1748273442467,-271.6424,0.00033818,2]
[362419363,1748273442477,-150.0,0.00033826,2]
[362419364,1748273442487,-150.0,0.00033835,2]
[362419365,1748273442496,-150.0,0.00033835,2]
[362419366,1748273442506,-150.0,0.00033839,2]
[362419367,1748273442516,-150.0,0.00033847,2]
[362419368,1748273442526,-379.79104232,0.00033847,2]
[362419369,1748273442536,-150.0,0.00033848,2]
[362419370,1748273442546,-150.0,0.00033849,2]
[362419371,1748273442555,-150.0,0.00033851,2]
[362419372,1748273442565,-150.0,0.00033855,2]
[362419373,1748273442575,-150.0,0.00033855,2]
[362419374,1748273442585,-150.0,0.00033864,2]
[362419375,1748273442596,-150.0,0.00033865,2]
[362419376,1748273442606,-155.54,0.00033868,2]
[362419377,1748273442615,-26989.8782417,0.00033869,2]
[362419378,1748273442625,-150.0,0.0003387,2]
[362419380,1748273442635,-501.08184199,0.00033873,5]
[362419382,1748273442644,-150.0,0.00033875,2]
[362419384,1748273442654,-150.0,0.00033876,2]
[362419385,1748273442663,-867.88764159,0.00033876,2]
[362419386,1748273442755,-882.1305123,0.00032113,2]
[362419390,1748273445669,-205.0,0.00031057,2]
[362419391,1748273445679,-117.8694877,0.00032113,2]
[362419392,1748273445688,-1000.0,0.00032113,2]
[362419393,1748273445696,-1000.0,0.00032113,2]
[362419394,1748273445706,-1000.0,0.00032114,30]
[362419395,1748273445715,-1000.0,0.00032114,30]
[362419396,1748273445726,-1000.0,0.00032114,30]
[362419397,1748273445735,-1000.0,0.00032312,7]
[362419398,1748273445744,-1000.0,0.00032312,7]
[362419399,1748273445757,-1000.0,0.00032312,7]
[362419400,1748273445769,-1479.35,0.00033699,2]
[362419401,1748273445779,-151.0,0.00033806,7]
[362419402,1748273445789,-335.16271392,0.00033867,2]
[362419403,1748273445800,-7840.54235037,0.00033876,2]
[362419404,1748273445843,-705.52841105,0.00033876,2]
[362419405,1748273445946,-1283.47775722,0.00033876,2]
[362419406,1748273445970,-2189.46076259,0.00033876,2]
[362419438,1748274631823,-1153.9472,0.0002549,3]
[362419439,1748274631835,-1432.5841342,0.0002549,3]
[362419440,1748274631845,-150.0,0.00027,2]
[362419441,1748274631855,-500.0,0.00028795,2]
[362419442,1748274631863,-500.0,0.00029734,2]
[362419443,1748274631873,-500.0,0.00029812,2]
[362419444,1748274631882,-501.4928891,0.0003,5]
[362419445,1748274631890,-500.0,0.00030175,7]
[362419446,1748274631898,-412.81,0.00030406,2]
[362419447,1748274631906,-500.0,0.00030596,7]
[362419448,1748274631915,-613.0,0.00030829,2]
[362419449,1748274631923,-154.0,0.000309,2]
[362419450,1748274631932,-208.23708799,0.000309,23]
[362419451,1748274631940,-1200.0,0.00031186,3]
[362419452,1748274631948,-956.18,0.00031187,2]
[362419453,1748274631957,-938.1574454,0.00031395,7]
[362419454,1748274631966,-200.0,0.00031425,2]
[362419455,1748274631975,-208.23708792,0.00031479,25]
[362419456,1748274631984,-400.0,0.00031552,2]
[362419457,1748274631992,-343.00573559,0.00031552,30]
[362419458,1748274632001,-500.0,0.00031554,7]
[362419459,1748274632009,-150.0,0.00031678,2]
[362419460,1748274632018,-141.99551391,0.00031877,2]
[362419461,1748274632037,-25.70448609,0.00031877,2]
[362419462,1748274632045,-167.7,0.00031885,2]
[362419463,1748274632052,-167.7,0.00031894,2]
[362419464,1748274632058,-167.7,0.00031902,2]
[362419465,1748274632065,-167.7,0.00031911,2]
[362419466,1748274632072,-167.7,0.00031919,2]
[362419467,1748274632079,-167.7,0.00031927,2]
[362419468,1748274632085,-167.7,0.00031936,2]
[362419469,1748274632093,-167.7,0.00031944,2]
[362419470,1748274632100,-167.7,0.00031952,2]
[362419471,1748274632109,-167.7,0.00031961,2]
[362419472,1748274632119,-167.7,0.00031969,2]
[362419473,1748274632128,-167.7,0.00031978,2]
[362419474,1748274632138,-167.7,0.00031986,2]
[362419475,1748274632147,-167.7,0.00031994,2]
[362419476,1748274632157,-167.7,0.00032003,2]
[362419477,1748274632168,-167.7,0.00032011,2]
[362419478,1748274632179,-167.7,0.00032019,2]
[362419479,1748274632189,-167.7,0.00032028,2]
[362419480,1748274632199,-167.7,0.00032036,2]
[362419481,1748274632209,-150.0,0.00032038,2]
[362419482,1748274632219,-208.23708792,0.00032058,26]
[362419483,1748274632228,-277.5,0.00032088,2]
[362419484,1748274632238,-222.63,0.00032114,120]
[362419485,1748274632249,-300.0,0.00032122,3]
[362419486,1748274632258,-207.4,0.00032123,2]
[362419487,1748274632267,-3151.36,0.00032124,2]
[362419488,1748274632278,-250.0,0.0003214,2]
[362419489,1748274632287,-150.0,0.0003214,2]
[362419490,1748274632296,-1312.0,0.00032143,2]
[362419491,1748274632306,-800.0,0.00032143,2]
[362419492,1748274632315,-422.445,0.00032143,2]
[362419493,1748274632324,-1153.0,0.00032143,2]
[362419494,1748274632334,-555.0,0.00032143,2]
[362419495,1748274632343,-923.0,0.00032143,2]
[362419496,1748274632352,-1463.0,0.00032143,2]
[362419497,1748274632362,-393.678,0.00032143,2]
[362419498,1748274632372,-4059.0,0.00032143,2]
[362419499,1748274632382,-280.828,0.00032143,2]
[362419500,1748274632392,-297.594,0.00032143,2]
[362419501,1748274632401,-881.0,0.00032143,2]
[362419502,1748274632410,-275.548,0.00032143,2]
[362419504,1748274632420,-151.0,0.00032305,2]
[362419506,1748274632429,-668.65185757,0.00032305,2]
[362419507,1748274632439,-668.65185757,0.00032305,2]
[362419509,1748274632448,-1000.0,0.00032323,2]
[362419512,1748274632458,-23900.0,0.00032324,2]
[362419513,1748274632468,-183.04,0.00032344,2]
[362419515,1748274632478,-163.68,0.0003236,2]
[362419517,1748274632487,-186.44,0.00032383,80]
[362419519,1748274632497,-1000.0,0.00032446,2]
[362419521,1748274632506,-498.64,0.00032446,2]
[362419523,1748274632516,-150.0,0.00032543,2]
[362419526,1748274632527,-207.81,0.00032545,2]
[362419527,1748274632536,-500.0,0.00032546,2]
[362419529,1748274632546,-500.0,0.00032546,2]
[362419531,1748274632556,-500.0,0.00032546,2]
[362419534,1748274632566,-500.0,0.00032546,2]
[362419535,1748274632575,-500.0,0.00032546,2]
[362419537,1748274632585,-404.76908272,0.00032546,2]
[362419539,1748274632594,-343.41509237,0.00032546,2]
[362419541,1748274632604,-500.0,0.00032546,2]
[362419543,1748274632613,-500.0,0.00032546,2]
[362419545,1748274632623,-418.88997571,0.00032546,2]
[362419547,1748274632632,-500.0,0.00032546,2]
[362419549,1748274632642,-565.55971711,0.00032546,2]
[362419551,1748274632652,-1127.36151,0.00032547,10]
[362419553,1748274632663,-200.0,0.00032549,2]
[362419555,1748274632672,-175.0,0.00032549,2]
[362419557,1748274632684,-500.0,0.00032549,2]
[362419559,1748274632694,-200.40224288,0.00032549,2]
[362419561,1748274632704,-201.49098696,0.00032549,2]
[362419563,1748274632713,-500.0,0.00032549,2]
[362419565,1748274632723,-150.0,0.00032549,2]
[362419566,1748274632732,-12513.49,0.00032549,2]
[362419568,1748274632742,-500.0,0.00032576,2]
[362419570,1748274632752,-539.1472452,0.00032576,2]
[362419572,1748274632762,-150.0,0.00032576,2]
[362419574,1748274632771,-500.0,0.00032604,2]
[362419576,1748274632781,-150.0,0.00032604,2]
[362419578,1748274632791,-642.09294678,0.00032631,2]
[362419580,1748274632801,-279.56115721,0.00032631,2]
[362419582,1748274632810,-208.23708792,0.00032637,27]
[362419584,1748274632820,-412.81,0.0003267,2]
[362419586,1748274632829,-301.07,0.00032877,2]
[362419588,1748274632840,-150.83,0.00032877,2]
[362419590,1748274632849,-1160.15,0.00032877,2]
[362419592,1748274632858,-381.68,0.00032877,2]
[362419594,1748274632869,-150.0,0.00032877,2]
[362419596,1748274632878,-1160.15,0.00032877,2]
[362419598,1748274632888,-150.0,0.00032877,2]
[362419600,1748274632898,-150.0,0.00032877,2]
[362419602,1748274632907,-150.0,0.00032877,2]
[362419604,1748274632916,-1160.15,0.00032877,2]
[362419606,1748274632927,-150.0,0.00032877,2]
[362419608,1748274632938,-150.0,0.00032877,2]
[362419610,1748274632947,-1160.15,0.00032877,2]
[362419612,1748274632957,-150.0,0.00032877,2]
[362419614,1748274632966,-1160.15,0.00032877,2]
[362419616,1748274632975,-150.0,0.00032877,2]
[362419617,1748274632983,-150.0,0.00032877,2]
[362419619,1748274632992,-150.0,0.00032877,27]
[362419621,1748274633002,-500.0,0.00032877,2]
[362419623,1748274633012,-1175.164493,0.00032889,12]
[362419625,1748274633021,-150.0,0.00032894,2]
[362419627,1748274633031,-150.0,0.00032904,27]
[362419629,1748274633040,-500.0,0.00032904,2]
[362419631,1748274633050,-200.0,0.00032932,27]
[362419633,1748274633059,-500.0,0.00032932,2]
[362419635,1748274633069,-500.0,0.00032959,2]
[362419637,1748274633078,-500.0,0.00032987,2]
[362419639,1748274633087,-500.0,0.00032999,7]
[362419641,1748274633096,-160.0,0.00033,2]
[362419643,1748274633106,-160.0,0.00033,2]
[362419645,1748274633115,-160.0,0.00033,2]
[362419647,1748274633124,-160.0,0.00033,2]
[362419649,1748274633133,-160.0,0.00033,2]
[362419651,1748274633142,-160.0,0.00033,2]
[362419653,1748274633151,-160.0,0.00033,2]
[362419655,1748274633161,-160.0,0.00033,2]
[362419657,1748274633172,-160.0,0.00033,2]
[362419658,1748274633183,-160.0,0.00033,2]
[362419660,1748274633192,-160.0,0.00033,2]
[362419662,1748274633201,-186.6,0.00033,2]
[362419664,1748274633213,-341.78818644,0.00033,5]
[362419666,1748274633222,-5000.0,0.00033,5]
[362419676,1748274633387,-497.63,0.00033,120]
[362419677,1748274633399,-156.0,0.00033,14]
[362419678,1748274633409,-500.0,0.00033014,2]
[362419679,1748274633419,-500.0,0.00033026,2]
[362419680,1748274633434,-976.92,0.00033038,2]
[362419681,1748274633443,-150.99,0.00033038,2]
[362419682,1748274633453,-557.68293893,0.00033041,2]
[362419683,1748274633463,-500.0,0.00033077,120]
[362419684,1748274633473,-156.0,0.00033151,30]
[362419685,1748274633483,-500.0,0.00033202,7]
[362419686,1748274633492,-500.0,0.00033202,7]
[362419687,1748274633502,-208.23708792,0.00033216,28]
[362419688,1748274633512,-150.0,0.00033295,2]
[362419689,1748274633522,-205.0,0.00033319,2]
[362419690,1748274633532,-2000.0,0.000334,2]
[362419691,1748274633543,-588.76193749,0.00033417,2]
[362419692,1748274633553,-215.0738,0.00033492,2]
[362419693,1748274633563,-242.83,0.000335,7]
[362419694,1748274633573,-652.55,0.000335,31]
[362419695,1748274633583,-652.55,0.000335,31]
[362419696,1748274633593,-652.55,0.000335,31]
[362419697,1748274633602,-652.55,0.000335,31]
[362419698,1748274633613,-652.55,0.000335,31]
[362419699,1748274633622,-652.55,0.000335,31]
[362419700,1748274633632,-652.55,0.000335,31]
[362419701,1748274633642,-652.55,0.000335,31]
[362419702,1748274633652,-652.55,0.000335,31]
[362419703,1748274633663,-652.55,0.000335,31]
[362419704,1748274633673,-652.55,0.000335,31]
[362419705,1748274633684,-652.55,0.000335,31]
[362419706,1748274633693,-150.0,0.00033537,2]
[362419707,1748274633703,-166.18,0.00033539,2]
[362419708,1748274633713,-160.0,0.000336,5]
[362419709,1748274633722,-150.0,0.00033632,2]
[362419710,1748274633733,-150.0,0.00033662,2]
[362419711,1748274633743,-150.0,0.00033669,2]
[362419712,1748274633753,-150.0,0.00033671,2]
[362419713,1748274633763,-156.587,0.00033674,2]
[362419714,1748274633773,-150.0,0.00033678,2]
[362419715,1748274633783,-150.0,0.0003368,2]
[362419716,1748274633792,-150.0,0.00033683,2]
[362419717,1748274633803,-150.0,0.00033683,2]
[362419718,1748274633812,-588.7619375,0.00033687,2]
[362419719,1748274633822,-1000.0,0.0003369,2]
[362419720,1748274633832,-150.0,0.00033691,2]
[362419721,1748274633841,-150.0,0.00033691,2]
[362419722,1748274633851,-150.0,0.00033696,2]
[362419723,1748274633860,-150.0,0.00033698,2]
[362419724,1748274633870,-353.71,0.00033699,2]
[362419725,1748274633880,-334.85,0.00033699,2]
[362419726,1748274633889,-353.71,0.00033699,2]
[362419727,1748274633899,-353.71,0.00033699,2]
[362419728,1748274633908,-353.71,0.00033699,2]
[362419729,1748274633918,-353.71,0.00033699,2]
[362419730,1748274633928,-704.27,0.00033699,2]
[362419731,1748274633939,-453.7,0.00033699,2]
[362419732,1748274633948,-453.7,0.00033699,2]
[362419733,1748274633958,-453.7,0.00033699,2]
[362419734,1748274633968,-462.3,0.00033699,2]
[362419735,1748274633978,-453.7,0.00033699,2]
[362419736,1748274633988,-453.7,0.00033699,2]
[362419737,1748274633997,-150.0,0.00033699,2]
[362419738,1748274634007,-150.0,0.00033699,2]
[362419739,1748274634018,-800.0,0.000337,12]
[362419740,1748274634027,-150.0,0.00033703,2]
[362419741,1748274634037,-150.0,0.00033703,2]
[362419742,1748274634047,-150.0,0.00033706,2]
[362419743,1748274634056,-150.0,0.00033709,2]
[362419744,1748274634066,-150.0,0.0003371,2]
[362419745,1748274634076,-150.0,0.0003371,2]
[362419746,1748274634085,-150.0,0.0003371,2]
[362419747,1748274634095,-150.0,0.00033713,2]
[362419748,1748274634104,-150.0,0.00033719,2]
[362419749,1748274634114,-150.0,0.00033721,2]
[362419750,1748274634124,-150.0,0.00033724,2]
[362419751,1748274634133,-150.0,0.00033727,2]
[362419752,1748274634143,-379.79104232,0.00033727,2]
[362419753,1748274634152,-150.0,0.00033731,2]
[362419754,1748274634162,-1410.934,0.00033735,36]
[362419755,1748274634175,-150.0,0.00033741,2]
[362419756,1748274634186,-150.0,0.00033741,2]
[362419757,1748274634195,-150.0,0.00033742,2]
[362419758,1748274634205,-150.0,0.00033746,2]
[362419759,1748274634215,-150.0,0.00033746,2]
[362419760,1748274634225,-164.31146309,0.00033747,15]
[362419761,1748274634235,-294.36481253,0.00033747,2]
[362419762,1748274634245,-150.0,0.0003375,2]
[362419763,1748274634256,-806.59160713,0.00033758,2]
[362419764,1748274634266,-159.42398421,0.00033758,5]
[362419765,1748274634275,-150.0,0.0003376,2]
[362419766,1748274634285,-150.0,0.00033762,2]
[362419767,1748274634295,-35930.8565,0.00033767,2]
[362419768,1748274634304,-1000.0,0.00033767,2]
[362419769,1748274634313,-150.0,0.00033767,2]
[362419770,1748274634323,-19437.4543,0.00033767,2]
[362419771,1748274634332,-500.0,0.00033767,2]
[362419772,1748274634342,-5000.0,0.00033768,2]
[362419773,1748274634352,-150.0,0.00033769,2]
[362419774,1748274634362,-150.0,0.0003377,2]
[362419775,1748274634372,-150.0,0.00033772,2]
[362419776,1748274634383,-173.85680973,0.00033773,5]
[362419777,1748274634393,-500.0,0.00033773,2]
[362419778,1748274634403,-150.0,0.00033773,2]
[362419779,1748274634414,-150.0,0.00033774,2]
[362419780,1748274634424,-221.55488068,0.00033777,6]
[362419781,1748274634436,-150.0,0.00033778,2]
[362419782,1748274634446,-492.3324,0.00033779,2]
[362419783,1748274634456,-150.0,0.0003378,2]
[362419784,1748274634466,-1000.0,0.00033784,2]
[362419785,1748274634475,-150.0,0.00033785,2]
[362419786,1748274634485,-150.0,0.00033788,2]
[362419787,1748274634496,-150.0,0.00033789,2]
[362419788,1748274634506,-150.0,0.00033791,2]
[362419789,1748274634515,-150.0,0.00033793,2]
[362419790,1748274634525,-208.23708792,0.00033795,29]
[362419791,1748274634534,-150.0,0.00033795,2]
[362419792,1748274634544,-150.0,0.00033796,2]
[362419793,1748274634554,-150.0,0.000338,2]
[362419794,1748274634564,-1600.0,0.000338,12]
[362419795,1748274634573,-766.0,0.000338,2]
[362419796,1748274634583,-237.0,0.000338,2]
[362419797,1748274634593,-375.0,0.000338,2]
[362419798,1748274634603,-150.0,0.00033801,2]
[362419799,1748274634613,-150.0,0.00033801,2]
[362419800,1748274634623,-1000.0,0.00033804,2]
[362419801,1748274634633,-151.0,0.00033806,7]
[362419802,1748274634644,-151.0,0.00033806,7]
[362419803,1748274634654,-150.0,0.00033807,2]
[362419804,1748274634664,-159.0,0.00033811,5]
[362419805,1748274634674,-150.0,0.00033811,2]
[362419806,1748274634687,-150.0,0.00033811,2]
[362419807,1748274634697,-150.0,0.00033813,2]
[362419808,1748274634707,-150.0,0.00033813,2]
[362419809,1748274634716,-150.0,0.00033815,2]
[362419810,1748274634726,-150.0,0.00033815,2]
[362419811,1748274634737,-150.0,0.00033816,2]
[362419812,1748274634747,-150.0,0.00033818,2]
[362419813,1748274634756,-150.0,0.0003382,2]